Workbook

Sheet Resumo
A1: TOTAL DOS CUSTOS DIRETOS | N1: =FSUP!N33 -> 0
A2: TOTAL DO CUSTOS INDIRETOS | N2: =FSUP!N37 -> 0
A3: TOTAL DA PROPOSTA | N3: =FSUP!N38 -> 0

Sheet FSUP
A3: PROPOSTA FINANCEIRA SUP. E APOIO A FISC. DE OBRA | N3: CODIGO:
N4: FSUP
A5: NOME DA CONSULTORA:
A7: PROJETO: | E7: OBJETO: | N7: EDITAL:
A8: Meio Ambiente | E8: Regularidade Ambiental de Barragens
A9: SERVIÇOS PAGOS A PREÇO UNITÁRIO
A10: MOBILIZAÇÃO/DESMOBILIZAÇÃO
A11: A1 - MOBILIZAÇÃO (FSUP-IV) | N11: ='FSUP-IV Mobiliz Desmob'!H41 -> 0
A12: A2 - DESMOBILIZAÇÃO (FSUP-IV) | N12: ='FSUP-IV Mobiliz Desmob'!L41 -> 0
A13: A - TOTAL DOS CUSTOS COM MOBILIZAÇÃO E DESMOBILIZAÇÃO | N13: =N11+N12 -> 0
A14: MÃO-DE-OBRA
A15: B1 - TOTAL DE SALÁRIO DA EQUIPE COM VÍNCULO (FSUP-I) | N15: ='FSUP-I EQUIPE TÉCNICA'!L37 -> 0
A16: B2 - TOTAL DE SALÁRIO DO AUTÔNOMO (FSUP-I) | N16: ='FSUP-I EQUIPE TÉCNICA'!M14 -> 0
A17: B - TOTAL DOS CUSTOS DE SALÁRIOS DA EQUIPE | N17: =SUM(N15:O16) -> 0
A18: C1 - ENCARGOS SOCIAiS DE B1 = | F18: ='FSUP-VII Det. Enc. Sociais'!F49 -> 0 | N18: =ROUND(N15*F18,2) -> 0
A19: C2 - ENCARGOS SOCIAIS DE B2 (20% DO B2) | N19: =ROUND(N16*0.2,2) -> 0
A20: C - TOTAL DOS CUSTOS COM ENCARGOS SOCIAIS | N20: =SUM(N18:O19) -> 0
A21: D1 - CUSTO TOTAL DAS PASSAGENS AÉREAS E TERRESTRES (FSUP-II) | N21: ='FSUP-II VIAGENS'!H32 -> 0
A22: D2 - CUSTO TOTAL DAS DIÁRIAS (FSUP-II) | N22: ='FSUP-II VIAGENS'!M32 -> 0
A23: D - TOTAL DO CUSTO COM VIAGENS | N23: =SUM(N21:O22) -> 0
A25: MANUTENÇÃO OPERACIONAL
A26: 1 - CUSTO DOS VEÍCULOS (FSUP-III, ITEM 1) | N26: ='FSUP-III Manutenção Operac'!I14 -> 0
A27: 2 - CUSTO DA MANUTENÇÃO E ADMINISTRAÇÃO DO ESCRITÓRIO DE APOIO (FSUP-III, ITEM 2) | N27: ='FSUP-III Manutenção Operac'!I24 -> 0
A28: 3 - ANÁLISE LABORATORIAIS - MONITORAMENTO DA QUALIDADE DE ÁGUA | N28: ='FSUP-III Manutenção Operac'!I64 -> 0
A29: 4 - EQUIPAMENTO (FSUP-III, ITEM 4) | N29: ='FSUP-III Manutenção Operac'!I70 -> 0
A30: 5 - SERVIÇOS GRÁFICOS/COMPUTAÇÃO (FSUP-III, ITEM 4) | N30: ='FSUP-III Manutenção Operac'!I76 -> 0
A32: E - TOTAL DOS PREÇOS COM MANUTENÇÃO OPERACIONAL | N32: =SUM(N26:O31) -> 0
A33: TOTAL DOS CUSTOS DIRETOS | N33: =SUM(N13+N17+N20+N23+N32) -> 0
A34: F - CUSTOS DE ADMINISTRAÇÃO = (20% DO B) | N34: =ROUND(N17*0.2,2) -> 0
A35: G - REMUNERAÇÃO DA EMPRESA (LUCRO) = (10% DE A + B + C + D + E + F) | N35: =ROUND(0.1*(N13+N17+N20+N23+N32+N34),2) -> 0
A36: H - DESPESAS FISCAIS = (A + B + C + D + E + F + G) = | I36: ='FSUP-VI Det. Desp Fiscais'!G29 -> 0 | N36: =ROUND(I36*(N13+N17+N20+N23+N32+N34+N35),2) -> 0
A37: TOTAL DO CUSTOS INDIRETOS | N37: =SUM(N34:O36) -> 0
A38: TOTAL DA PROPOSTA | N38: =N33+N37 -> 0
A39: NOME DO INFORMANTE: | J39: QUALIFICAÇÃO:
A41: ASSINATURA: | N41: DATA:
A43: OBSERVAÇÃO:

Sheet FSUP-I EQUIPE TÉCNICA
A3: SALÁRIOS DA EQUIPE TÉCNICA | L3: CODIGO:
L4: FSUP- I
A5: NOME DA CONSULTORA:
A7: PROJETO: | C7: OBJETO: | L7: EDITAL:
A8: Meio Ambiente | C8: Regularidade Ambiental de Barragens
A9: EQUIPE TÉCNICA | E9: COMPOSIÇÃO DOS SALÁRIOS POR PROFISSÃO/FUNÇÃO | L9: CUSTOS
E10: SALÁRIO | F10: ENC. | G10: CUSTO | H10: R. EMP. | I10: DESP. | J10: SALÁRIO | K10: HORA | L10: SALÁRIO | M10: SALÁRIO
A11: PROFISSÃO/FUNÇÃO | C11: S | D11: QTD | E11: CATEG. | F11: SOCIAIS | G11: ADM. | H11: LUCRO | I11: FISCAIS | J11: MENSAL | K11: TÉCNICA | L11: B1 | M11: B2
A13: NÍVEL SUPERIOR
A14: Consultoria (SICRO - P8061 + 20%) | D14: =0.75*2 -> 1.5 | F14: =ROUND(E14*0.2,2) -> 0 | G14: =ROUND(E14*0.2,2) -> 0 | H14: =ROUND(0.1*(E14+F14+G14),2) -> 0 | I14: =ROUND('FSUP-VI Det. Desp Fiscais'!$G$29*(E14+F14+G14+H14),2) -> 0 | J14: =SUM(E14:I14) -> 0 | K14: =ROUND(J14/176,2) -> 0 | M14: =D14*E14 -> 0
A15: Coordenador Ambiental (SICRO - P8044) | D15: 27 | F15: =ROUND(E15*'FSUP-VII Det. Enc. Sociais'!$F$49,2) -> 0 | G15: =ROUND(E15*'FSUP-V Det. custos Adm.'!$F$38/100,2) -> 0 | H15: =ROUND(0.1*(E15+F15+G15),2) -> 0 | I15: =ROUND('FSUP-VI Det. Desp Fiscais'!$G$29*(E15+F15+G15+H15),2) -> 0 | J15: =SUM(E15:I15) -> 0 | K15: =ROUND(J15/176,2) -> 0 | L15: =ROUND(D15*E15,2) -> 0
A16: Geógrafo junior (SICRO - P8051) | D16: 6 | F16: =ROUND(E16*'FSUP-VII Det. Enc. Sociais'!$F$49,2) -> 0 | G16: =ROUND(E16*'FSUP-V Det. custos Adm.'!$F$38/100,2) -> 0 | H16: =ROUND(0.1*(E16+F16+G16),2) -> 0 | I16: =ROUND('FSUP-VI Det. Desp Fiscais'!$G$29*(E16+F16+G16+H16),2) -> 0 | J16: =SUM(E16:I16) -> 0 | K16: =ROUND(J16/176,2) -> 0 | L16: =ROUND(D16*E16,2) -> 0
A17: Geólogo junior (SICRO - P8080) | D17: 8 | F17: =ROUND(E17*'FSUP-VII Det. Enc. Sociais'!$F$49,2) -> 0 | G17: =ROUND(E17*'FSUP-V Det. custos Adm.'!$F$38/100,2) -> 0 | H17: 0 | I17: =ROUND('FSUP-VI Det. Desp Fiscais'!$G$29*(E17+F17+G17+H17),2) -> 0 | J17: 0 | K17: 0 | L17: 0
A18: Engenheiro SICRO - (P8059) | D18: 30 | F18: =ROUND(E18*'FSUP-VII Det. Enc. Sociais'!$F$49,2) -> 0 | G18: =ROUND(E18*'FSUP-V Det. custos Adm.'!$F$38/100,2) -> 0 | H18: 0 | I18: =ROUND('FSUP-VI Det. Desp Fiscais'!$G$29*(E18+F18+G18+H18),2) -> 0 | J18: 0 | K18: 0 | L18: =ROUND(D18*E18,2) -> 0
A19: Biólogo pleno (SICRO - P8033) | D19: 44 | F19: =ROUND(E19*'FSUP-VII Det. Enc. Sociais'!$F$49,2) -> 0 | G19: =ROUND(E19*'FSUP-V Det. custos Adm.'!$F$38/100,2) -> 0 | H19: 0 | I19: =ROUND('FSUP-VI Det. Desp Fiscais'!$G$29*(E19+F19+G19+H19),2) -> 0 | J19: 0 | K19: 0 | L19: 0
A20: Economista pleno (SICRO - P8046) | D20: 8 | F20: =ROUND(E20*'FSUP-VII Det. Enc. Sociais'!$F$49,2) -> 0 | G20: =ROUND(E20*'FSUP-V Det. custos Adm.'!$F$38/100,2) -> 0 | H20: 0 | I20: =ROUND('FSUP-VI Det. Desp Fiscais'!$G$29*(E20+F20+G20+H20),2) -> 0 | J20: 0 | K20: 0 | L20: 0
A21: Arqueólogo sênior (SICRO - P8125) | D21: 6 | F21: =ROUND(E21*'FSUP-VII Det. Enc. Sociais'!$F$49,2) -> 0 | G21: =ROUND(E21*'FSUP-V Det. custos Adm.'!$F$38/100,2) -> 0 | H21: 0 | I21: =ROUND('FSUP-VI Det. Desp Fiscais'!$G$29*(E21+F21+G21+H21),2) -> 0 | J21: 0 | K21: 0 | L21: 0
A22: Pedagogo/Assist. Social pleno (SICRO - 8130) | D22: 14 | F22: =ROUND(E22*'FSUP-VII Det. Enc. Sociais'!$F$49,2) -> 0 | G22: =ROUND(E22*'FSUP-V Det. custos Adm.'!$F$38/100,2) -> 0 | H22: 0 | I22: =ROUND('FSUP-VI Det. Desp Fiscais'!$G$29*(E22+F22+G22+H22),2) -> 0 | J22: 0 | K22: 0 | L22: 0
A23: Advogado pleno (SICRO - P8002) | D23: 1 | F23: =ROUND(E23*'FSUP-VII Det. Enc. Sociais'!$F$49,2) -> 0 | G23: =ROUND(E23*'FSUP-V Det. custos Adm.'!$F$38/100,2) -> 0 | H23: 0 | I23: =ROUND('FSUP-VI Det. Desp Fiscais'!$G$29*(E23+F23+G23+H23),2) -> 0 | J23: 0 | K23: 0 | L23: 0
A25: NÍVEL TÉCNICO
A26: Técnico em geoprocessamento (SICRO - P8155) | D26: 23 | F26: =ROUND(E26*'FSUP-VII Det. Enc. Sociais'!$F$49,2) -> 0 | G26: =ROUND(E26*'FSUP-V Det. custos Adm.'!$F$38/100,2) -> 0 | H26: =ROUND(0.1*(E26+F26+G26),2) -> 0 | I26: =ROUND('FSUP-VI Det. Desp Fiscais'!$G$29*(E26+F26+G26+H26),2) -> 0 | J26: =SUM(E26:I26) -> 0 | K26: =ROUND(J26/176,2) -> 0 | L26: =ROUND(D26*E26,2) -> 0
A27: Técnico ambiental (SICRO - 8143) | D27: 23 | F27: =ROUND(E27*'FSUP-VII Det. Enc. Sociais'!$F$49,2) -> 0 | G27: =ROUND(E27*'FSUP-V Det. custos Adm.'!$F$38/100,2) -> 0 | H27: =ROUND(0.1*(E27+F27+G27),2) -> 0 | I27: =ROUND('FSUP-VI Det. Desp Fiscais'!$G$29*(E27+F27+G27+H27),2) -> 0 | J27: =SUM(E27:I27) -> 0 | K27: =ROUND(J27/176,2) -> 0 | L27: =ROUND(D27*E27,2) -> 0
A30: NÍVEL AUXILIAR
A32: Auxiliar administrativo (SICRO - P8026) | D32: 27 | F32: =ROUND(E32*0.7272,2) -> 0 | G32: =ROUND(E32*'FSUP-V Det. custos Adm.'!$F$38/100,2) -> 0 | H32: =ROUND(0.1*(E32+F32+G32),2) -> 0 | I32: =ROUND(0.1396*(E32+F32+G32+H32),2) -> 0 | J32: =SUM(E32:I32) -> 0 | K32: =ROUND(J32/176,2) -> 0 | L32: =ROUND(D32*E32,2) -> 0
A33: Piloto fluvial (SICRO/MA - P9940) | D33: 4 | F33: =ROUND(E33*0.7272,2) -> 0 | G33: =ROUND(E33*'FSUP-V Det. custos Adm.'!$F$38/100,2) -> 0 | H33: =ROUND(0.1*(E33+F33+G33),2) -> 0 | I33: =ROUND(0.1396*(E33+F33+G33+H33),2) -> 0 | J33: =SUM(E33:I33) -> 0 | K33: =ROUND(J33/176,2) -> 0 | L33: =ROUND(D33*E33,2) -> 0
A37: TOTAIS DOS SALÁRIOS DA EQUIPE | L37: =ROUND(SUM(L13:L36),2) -> 0 | M37: =SUM(M13:M36) -> 0
A38: NOME DO INFORMANTE: | H38: QUALIFICAÇÃO:
A40: ASSINATURA: | L40: DATA:
A42: OBSERVAÇÃO:
A43: 1 - UTILIZAR OS PARÂMETROS DE CLASSIFICAÇÃO INDICADOS NO TSUP- II EQUIPE TÉCNICA
A44: 2- UTILIZAR OS SÍMBOLOS INDICADOS NO TSUP-II EQUIPE TÉCNICA
A45: 3- INDICAR A QUANTIDADE DE HOMENS POR CATEGORIA.
A46: 4- INIDCAR O SALÁRIO BASE DA CATEGORIA
A47: 5 - ENC. SOCIAIS, APLICAR NO MÁXIMO 20% PARA AUTÔNOMOS E 73,34% PARA EMPREG. COM VÍNCULO DETALHAR NO FSUP-VII
A48: 6- CUSTO DE ADMINISTRAÇÃO, APLICAR NO MÁXIMO 25% SOBRE O SALÁRIO BASE DA CATEGORIA
A49: 7 - REMUN. DA EMPRESA (LUCRO), APLICAR NO MÁXIMO 10% SOBRE O SALÁRIO DA CATEG + ENCARGOS SOCIAIS + CUSTO DE ADM.
A50: 8 - DESP. FISCAIS, APLICAR O DF' CALCULADO NO FSUP-VI SOBRE O SALÁRIO DA CATEG. + ENC. SOCIAIS + CUSTO DE ADM. + LUCRO
A51: 9- PREÇO DO HOMEM MÊS POR CATEGORIA = SOMATÓRIO DOS ITENS (4) + (5) + (6) + (7) +(8)
A52: 10- PREÇO DA HORA TÉCNICA = (9) / 176
A53: 11 - SALÁRIOS DE B1 = SALARIO DOS EMPREGADOS COM VÍNCULO X QTD HOMEM MÊS. EXPORTAR O TOTAL PARA LINHA B1 DO FSUP
A54: 12 - SALÁRIO DE B2 = SALÁRIO DO AUTÔNOMO X QTD HOMEM X MÊS. EXPORTAR O TOTAL PARA A LINHA B2 DO FSUP

Sheet FSUP-II VIAGENS
A3: VIAGENS DA EQUIPE TÉCNICA | N3: CODIGO:
N4: FSUP-II
A5: NOME DA CONSULTORA:
A7: PROJETO: | C7: OBJETO:
A8: Meio Ambiente | C8: Regularidade Ambiental de Barragens
A9: SIMBOLO | B9: ROTEIRO (ida e volta) SICRO | E9: PASSAGENS | L9: DIÁRIAS
E10: A/T | F10: QTD | G10: CUSTO | I10: PREÇO | K10: QTD | L10: CUSTO | N10: PREÇO
G11: UNITÁRIO | H11: TOTAL | I11: UNITÁRIO | J11: TOTAL | L11: UNITÁRIO | M11: TOTAL | N11: UNITÁRIO | O11: TOTAL
A13: C/P0/P1/P2/T1 | B13: Sede/Diversos/Sede | E13: A | F13: =(2*29)+(2*8)+(2*3) -> 80 | H13: =ROUND(G13*F13,2) -> 0 | I13: =ROUND((1+0.1)*(1+'FSUP-VI Det. Desp Fiscais'!$G$29)*G13,2) -> 0 | J13: =ROUND(F13*I13,2) -> 0 | K13: =(2*108)+(2*31)+(2*12) -> 302 | M13: =ROUND(L13*K13,2) -> 0 | N13: =ROUND((1+0.1)*(1+'FSUP-VI Det. Desp Fiscais'!$G$29)*L13,2) -> 0 | O13: =ROUND(K13*N13,2) -> 0 | Q13: 10 viagens Aereas/mês | S13: 360
Q14: 2 viagens / mês | S14: 72
Q16: 30 diárias/mês | S16: 1080
A32: TOTAIS DE CUSTOS E DE PREÇOS DE PASSAGENS E DIÁRIAS | H32: =SUM(H12:H31) -> 0 | J32: =SUM(J12:J31) -> 0 | M32: =SUM(M12:M31) -> 0 | O32: =SUM(O12:O31) -> 0
A33: NOME DO INFORMANTE: | G33: QUALIFICAÇÃO:
A35: ASSINATURA: | M35: DATA:
A37: OBSERVAÇÕES:
A38: 1 - VIAGENS DURANTE A EXECUÇÃO DOS SERVIÇOS, INCLUÍNDO REUNIÕES NA ADM. CENTRAL DA CODEVASF
A39: 2 - NÂO INCLUIR VIAGENS COM MOBILIZAÇÃO/DESMOBILIZAÇÃO DA EQUIPE QUE SERÃO CALCULADOS NO PSUP-IV
A40: 3 - AS DIÁRIAS COBREM DESPESAS COM TAXI, ALIMENTAÇÃO E HOSPEDAGEM
A41: 4 - INDICAR (A) PARA AS PASSAGENS AÉREAS E (T) PARA AS TERRESTRES
A42: 5 - CUSTO DO ITEM SEM LUCRO E SEM DESPESAS FISCAIS
A43: 6 - EXPORTAR O TOTAL DO CUSTO COM PASSAGENS E DIÁRIAS, RESPECTIVAMENTE, LINHAS "D1" E "D2" DO PSUP
A44: 6 - PREÇO = CUSTO + LUCRO+ DESPESAS FISCAIS E SERÁ CALCULADO COM A SEGUINTE FORMULA:CUSTO*(1+0,1)*(1+0,1662)
A45: 7 - OS PREÇOS UNITÁRIOS SERÃO UTILIZADOS PARA FINS DE FATURARAMENTO
A46: 8 - AS PASSAGENS AÉREAS POSSUEM VALOR UNITÁRIO MÉDIO ENTRE OS TRECHOS SDU/BSB/SDU, GRU/BSB/GRU, POA/BSB/POA E SSA/BSB/SSA
A47: 9 - AS PASSAGENS TERRESTRES SÃO COM BASE NO VALOR DA PASSAGEM DA CAPITAL AO INTERIOR DO ESTADO DA BAHIA (MAIOR ESTADO DA ÁREA DE ATUAÇÃO DA CODEVASF)

Sheet FSUP-III Manutenção Operac
A3: MANUTENÇÃO OPERACIONAL | J3: CODIGO:
J4: FSUP-III
A5: NOME DA CONSULTORA:
A7: PROJETO: | C7: OBJETO: | J7: EDITAL:
A8: Meio Ambiente | C8: Regularidade Ambiental de Barragens
A9: DISCRIMINAÇÃO | F9: UND | G9: QTD | H9: CUSTOS 2 | J9: PREÇOS 3
H10: UNT | I10: TOTAL | J10: UNT | K10: TOTAL | M10: Quantitativo proporcional para 3 anos | O10: Qtativo 3 anos+15%
A11: 1 VEÍCULOS
A12: 1.1 Aluguel de veículos 4x4 - Tipo Caminhonete (Cabine Dupla) (Eng. Cons. 2020) | F12: mês | G12: 26 | I12: =ROUND(G12*H12,2) -> 0 | J12: =ROUND((1+0.1)*(1+'FSUP-VI Det. Desp Fiscais'!$G$29)*H12,2) -> 0 | K12: =ROUND(G12*J12,2) -> 0 | M12: 60 | O12: =M12+(M12*0.15) -> 69
A13: 1.2 Locação de barco (SICRO E9043) | F13: mês | G13: 4 | I13: =ROUND(G13*H13,2) -> 0 | J13: =ROUND((1+0.1)*(1+'FSUP-VI Det. Desp Fiscais'!$G$29)*H13,2) -> 0 | K13: =ROUND(G13*J13,2) -> 0 | M13: 48 | O13: =M13+(M13*0.15) -> 55.2
A14: Total dos custos e dos preços dos veículos | I14: =SUM(I12:I13) -> 0 | K14: =SUM(K12:K13) -> 0
A15: 2 MANUTENÇÃO E ADMINISTRAÇÃO DO ESCRITÓRIO DE APOIO (BRASÍLIA/DF)
A16: 2.1 Aluguel de escritório com mobiliário (Consultoria SICRO-Esc.1615,80+Mob.862,56) | F16: mês | G16: 27 | I16: =ROUND(G16*H16,2) -> 0 | J16: =ROUND((1+0.1)*(1+'FSUP-VI Det. Desp Fiscais'!$G$29)*H16,2) -> 0 | K16: =ROUND(G16*J16,2) -> 0
A17: 2.2 Telefone (10557/ORSE) | F17: mês | G17: 27 | I17: 0 | J17: =ROUND((1+0.1)*(1+'FSUP-VI Det. Desp Fiscais'!$G$29)*H17,2) -> 0 | K17: 0
A18: 2.3 Energia elétrica | F18: mês | G18: 27 | I18: 0 | J18: =ROUND((1+0.1)*(1+'FSUP-VI Det. Desp Fiscais'!$G$29)*H18,2) -> 0 | K18: 0
A19: 2.4 água e esgoto (AGETOP-Agua/2755-Esgoto/2759) | F19: mês | G19: 27 | I19: 0 | J19: =ROUND((1+0.1)*(1+'FSUP-VI Det. Desp Fiscais'!$G$29)*H19,2) -> 0 | K19: 0
A20: 2.5 Material de limpeza (10563/ORSE) | F20: mês | G20: 27 | I20: 0 | J20: =ROUND((1+0.1)*(1+'FSUP-VI Det. Desp Fiscais'!$G$29)*H20,2) -> 0 | K20: 0
A21: 2.6 Internet (10562/ORSE) | F21: mês | G21: 27 | I21: 0 | J21: =ROUND((1+0.1)*(1+'FSUP-VI Det. Desp Fiscais'!$G$29)*H21,2) -> 0 | K21: 0
A22: 2.7 Material de escritório (10562/ORSE) | F22: mês | G22: 27 | I22: 0 | J22: =ROUND((1+0.1)*(1+'FSUP-VI Det. Desp Fiscais'!$G$29)*H22,2) -> 0 | K22: 0
A24: Total dos custos e dos preços da manut. E adm. Do escritório de apoio em Brasília | I24: =SUM(I15:I22) -> 0 | K24: =SUM(K15:K22) -> 0
A25: 3 Análises Laboratoriais - Monitoramento de Qualidade de Àgua
A26: 3.1 Alumínio Dissolvido | F26: unid | G26: 20 | I26: =ROUND(G26*H26,2) -> 0 | J26: =ROUND((1+0.1)*(1+'FSUP-VI Det. Desp Fiscais'!$G$29)*H26,2) -> 0 | K26: =ROUND(G26*J26,2) -> 0
A27: 3.2 Arsênio Total | F27: und | G27: 20 | I27: 0 | J27: =ROUND((1+0.1)*(1+'FSUP-VI Det. Desp Fiscais'!$G$29)*H27,2) -> 0 | K27: 0
A28: 3.3 Boro Total | F28: und | G28: 20 | I28: 0 | J28: =ROUND((1+0.1)*(1+'FSUP-VI Det. Desp Fiscais'!$G$29)*H28,2) -> 0 | K28: 0
A29: 3.4 Bário Total | F29: und | G29: 20 | I29: 0 | J29: =ROUND((1+0.1)*(1+'FSUP-VI Det. Desp Fiscais'!$G$29)*H29,2) -> 0 | K29: 0
A30: 3.5 Cádmio Total | F30: und | G30: 20 | I30: 0 | J30: =ROUND((1+0.1)*(1+'FSUP-VI Det. Desp Fiscais'!$G$29)*H30,2) -> 0 | K30: 0
A31: 3.6 Chumbo Total | F31: und | G31: 20 | I31: 0 | J31: =ROUND((1+0.1)*(1+'FSUP-VI Det. Desp Fiscais'!$G$29)*H31,2) -> 0 | K31: 0
A32: 3.7 Cloreto Total | F32: und | G32: 20 | I32: 0 | J32: =ROUND((1+0.1)*(1+'FSUP-VI Det. Desp Fiscais'!$G$29)*H32,2) -> 0 | K32: 0
A33: 3.8 Cobre Dissolvido | F33: und | G33: 20 | I33: 0 | J33: =ROUND((1+0.1)*(1+'FSUP-VI Det. Desp Fiscais'!$G$29)*H33,2) -> 0 | K33: 0
A34: 3.9 Coliformes Termotolerantes TM | F34: und | G34: 20 | I34: 0 | J34: =ROUND((1+0.1)*(1+'FSUP-VI Det. Desp Fiscais'!$G$29)*H34,2) -> 0 | K34: 0
A35: 3.10 Condutividade Elétrica/Salinidade | F35: unid | G35: 20 | I35: 0 | J35: =ROUND((1+0.1)*(1+'FSUP-VI Det. Desp Fiscais'!$G$29)*H35,2) -> 0 | K35: 0
A36: 3.11 Cromo Total | F36: und | G36: 20 | I36: 0 | J36: =ROUND((1+0.1)*(1+'FSUP-VI Det. Desp Fiscais'!$G$29)*H36,2) -> 0 | K36: 0
A37: 3.12 DBO | F37: unid | G37: 20 | I37: 0 | J37: =ROUND((1+0.1)*(1+'FSUP-VI Det. Desp Fiscais'!$G$29)*H37,2) -> 0 | K37: 0
A38: 3.13 Ferro Dissolvido | F38: und | G38: 20 | I38: 0 | J38: =ROUND((1+0.1)*(1+'FSUP-VI Det. Desp Fiscais'!$G$29)*H38,2) -> 0 | K38: 0
A39: 3.14 Fósforo Total | F39: unid | G39: 20 | I39: 0 | J39: =ROUND((1+0.1)*(1+'FSUP-VI Det. Desp Fiscais'!$G$29)*H39,2) -> 0 | K39: 0
A40: 3.15 Manganês Total | F40: und | G40: 20 | I40: 0 | J40: =ROUND((1+0.1)*(1+'FSUP-VI Det. Desp Fiscais'!$G$29)*H40,2) -> 0 | K40: 0
A41: 3.16 Mercúrio Total | F41: und | G41: 20 | I41: 0 | J41: =ROUND((1+0.1)*(1+'FSUP-VI Det. Desp Fiscais'!$G$29)*H41,2) -> 0 | K41: 0
A42: 3.17 Nitrogênio - Amoniacal Total | F42: und | G42: 20 | I42: 0 | J42: =ROUND((1+0.1)*(1+'FSUP-VI Det. Desp Fiscais'!$G$29)*H42,2) -> 0 | K42: 0
A43: 3.18 Nitrogênio - Nitratos | F43: und | G43: 20 | I43: 0 | J43: =ROUND((1+0.1)*(1+'FSUP-VI Det. Desp Fiscais'!$G$29)*H43,2) -> 0 | K43: 0
A44: 3.19 Nitrogênio - Nitritos | F44: und | G44: 20 | I44: 0 | J44: =ROUND((1+0.1)*(1+'FSUP-VI Det. Desp Fiscais'!$G$29)*H44,2) -> 0 | K44: 0
A45: 3.20 Nitrogênio Total | F45: und | G45: 20 | I45: 0 | J45: =ROUND((1+0.1)*(1+'FSUP-VI Det. Desp Fiscais'!$G$29)*H45,2) -> 0 | K45: 0
A46: 3.21 Óleos e Graxas | F46: und | G46: 20 | I46: 0 | J46: =ROUND((1+0.1)*(1+'FSUP-VI Det. Desp Fiscais'!$G$29)*H46,2) -> 0 | K46: 0
A47: 3.22 Oxigênio Dissolvido | F47: und | G47: 20 | I47: 0 | J47: =ROUND((1+0.1)*(1+'FSUP-VI Det. Desp Fiscais'!$G$29)*H47,2) -> 0 | K47: 0
A48: 3.23 pH | F48: und | G48: 20 | I48: 0 | J48: =ROUND((1+0.1)*(1+'FSUP-VI Det. Desp Fiscais'!$G$29)*H48,2) -> 0 | K48: 0
A49: 3.24 Sólidos Dissolvidos Totais | F49: unid | G49: 20 | I49: 0 | J49: =ROUND((1+0.1)*(1+'FSUP-VI Det. Desp Fiscais'!$G$29)*H49,2) -> 0 | K49: 0
A50: 3.25 Sólidos Suspensos | F50: unid | G50: 20 | I50: 0 | J50: =ROUND((1+0.1)*(1+'FSUP-VI Det. Desp Fiscais'!$G$29)*H50,2) -> 0 | K50: 0
A51: 3.26 Sulfato Total | F51: unid | G51: 20 | I51: 0 | J51: =ROUND((1+0.1)*(1+'FSUP-VI Det. Desp Fiscais'!$G$29)*H51,2) -> 0 | K51: 0
A52: 3.27 Temperatura | F52: unid | G52: 20 | I52: 0 | J52: =ROUND((1+0.1)*(1+'FSUP-VI Det. Desp Fiscais'!$G$29)*H52,2) -> 0 | K52: 0
A53: 3.28 Turbidez | F53: unid | G53: 20 | I53: 0 | J53: =ROUND((1+0.1)*(1+'FSUP-VI Det. Desp Fiscais'!$G$29)*H53,2) -> 0 | K53: 0
A54: 3.29 Zinco Total | F54: unid | G54: 20 | I54: 0 | J54: =ROUND((1+0.1)*(1+'FSUP-VI Det. Desp Fiscais'!$G$29)*H54,2) -> 0 | K54: 0
A55: Organofosforados
A56: 3.30 2,4-D | F56: unid | G56: 20 | I56: 0 | J56: =ROUND((1+0.1)*(1+'FSUP-VI Det. Desp Fiscais'!$G$29)*H56,2) -> 0 | K56: 0
A57: 3.31 Benzeno | F57: unid | G57: 20 | I57: 0 | J57: =ROUND((1+0.1)*(1+'FSUP-VI Det. Desp Fiscais'!$G$29)*H57,2) -> 0 | K57: 0
A58: 3.32 Malation | F58: unid | G58: 20 | I58: 0 | J58: =ROUND((1+0.1)*(1+'FSUP-VI Det. Desp Fiscais'!$G$29)*H58,2) -> 0 | K58: 0
A59: 3.33 Parathion | F59: unid | G59: 20 | I59: 0 | J59: =ROUND((1+0.1)*(1+'FSUP-VI Det. Desp Fiscais'!$G$29)*H59,2) -> 0 | K59: 0
A60: 3.34 Glifosato | F60: unid | G60: 20 | I60: 0 | J60: =ROUND((1+0.1)*(1+'FSUP-VI Det. Desp Fiscais'!$G$29)*H60,2) -> 0 | K60: 0
A61: Organoclorados
A62: 3.35 Alaclor | F62: unid | G62: 20 | I62: 0 | J62: =ROUND((1+0.1)*(1+'FSUP-VI Det. Desp Fiscais'!$G$29)*H62,2) -> 0 | K62: 0
A63: 3.36 Metolacloro | F63: unid | G63: 20 | I63: 0 | J63: =ROUND((1+0.1)*(1+'FSUP-VI Det. Desp Fiscais'!$G$29)*H63,2) -> 0 | K63: 0
A64: Total dos custos do monitoramento de água | I64: =SUM(I26:I63) -> 0 | K64: =SUM(K26:K63) -> 0
A65: 4 EQUIPAMENTOS/SERVIÇOS | O65: qtativo mês + 15% PISF | P65: Total
A66: 4.1 Notebook (P0, P1, P2 e T1) - (Core i7, 8Gb RAM, 1Tb) | F66: mês | G66: 218.5 | I66: =ROUND(G66*H66,2) -> 0 | J66: =ROUND((1+0.1)*(1+'FSUP-VI Det. Desp Fiscais'!$G$29)*H66,2) -> 0 | K66: =ROUND(G66*J66,2) -> 0 | M66: 24 | N66: UNID/MÊS | O66: =M66+(M66*0.15) -> 27.6 | P66: =O66*36 -> 993.6
A67: 4.2 Máquina fotográfica (16.1MP, 8Gb de memória) | F67: mês | G67: 10 | I67: 0 | J67: =ROUND((1+0.1)*(1+'FSUP-VI Det. Desp Fiscais'!$G$29)*H67,2) -> 0 | K67: 0 | M67: 10 | N67: UNID/MÊS | O67: =M67+(M67*0.15) -> 11.5 | P67: =O67*36 -> 414
A68: 4.3 GPS ( Resolução nativa de 176 x 220) | F68: mês | G68: 10 | I68: 0 | J68: =ROUND((1+0.1)*(1+'FSUP-VI Det. Desp Fiscais'!$G$29)*H68,2) -> 0 | K68: 0 | M68: 10 | N68: UNID/MÊS | O68: =M68+(M68*0.15) -> 11.5 | P68: =O68*36 -> 414
A69: 4.4 Vant PPK/RTK | F69: mês | G69: 6 | I69: 0 | J69: =ROUND((1+0.1)*(1+'FSUP-VI Det. Desp Fiscais'!$G$29)*H69,2) -> 0 | K69: 0 | M69: 4 | N69: UNID/MÊS | O69: =M69+(M69*0.15) -> 4.6 | P69: =O69*36 -> 165.6
A70: Total dos custos e dos preços dos equip. de apoio em Brasília/DF | I70: =SUM(I66:I69) -> 0 | K70: =SUM(K66:K69) -> 0
A71: 5 SERVIÇOS GRÁFICOS
A72: 5.1 Relatórios de Andamento (média = 50 folhas) (Cotação_2020) | F72: unid. | G72: 40 | I72: =ROUND(G72*H72,2) -> 0 | J72: =ROUND((1+0.1)*(1+'FSUP-VI Det. Desp Fiscais'!$G$29)*H72,2) -> 0 | K72: =ROUND(G72*J72,2) -> 0
A73: 5.2 Relatório Final (produtos finais) (Cotação_2020) | F73: unid. | G73: 24 | I73: 0 | J73: =ROUND((1+0.1)*(1+'FSUP-VI Det. Desp Fiscais'!$G$29)*H73,2) -> 0 | K73: 0 | M73: 550 | O73: =M73+(M73*0.15) -> 632.5
A74: 5.3 Banner - impressão A1(PACUERAs) | F74: unid. | G74: 10 | I74: 0 | J74: =ROUND((1+0.1)*(1+'FSUP-VI Det. Desp Fiscais'!$G$29)*H74,2) -> 0 | K74: 0
A75: 5.4 Placas em chapa de zinco 2,0x2,8 m com as bases de madeira instalada no local | F75: unid. | G75: 5 | I75: 0 | J75: =ROUND((1+0.1)*(1+'FSUP-VI Det. Desp Fiscais'!$G$29)*H75,2) -> 0 | K75: 0
A76: Total dos custos e dos preços dos serv. gráficos/computação | I76: =SUM(I72:I75) -> 0 | K76: =SUM(K72:K75) -> 0
A78: NOME DO INFORMANTE: | G78: QUALIFICAÇÃO:
A80: ASSINATURA: | H80: DATA:
A82: OBSERVAÇÃO:
A83: 1. Aluguel de veículos e barco inclui combustível e manutenção até o limite de 3000km/mês
A84: 2. Custo do item sem lucro e despesas fiscais
A85: 3. Preço = custo + lucro + despesas fiscais. Para calcular o preço aplica-se a seguinte fórmula: custo*(1+0,1)*(1+0,1662)
A86: 4. Exportar " total custo" para a linha corresponde no FSUP. Os preços serão aplicados para fins de faturamento

Sheet FSUP-IV Mobiliz Desmob
A3: MOBILIZAÇÃO E DESMOBILIZAÇÃO | M3: CODIGO:
M4: FSUP-IV
A5: NOME DA CONSULTORA:
M6: DF'= | N6: ='FSUP-VI Det. Desp Fiscais'!G29 -> 0
A7: PROJETO: | C7: OBJETO: | M7: EDITAL:
A8: Meio Ambiente | C8: Regularidade Ambiental de Barragens
A9: DISCRIMINAÇÃO | D9: SÍMB. | E9: UNID | F9: QTD. | G9: MOBILIZAÇÃO | K9: DESMOBILIZAÇÃO
G10: CUSTO | I10: PREÇO | K10: CUSTO | M10: PREÇO
G11: UNITÁRIO | H11: TOTAL | I11: UNITÁRIO | J11: TOTAL | K11: UNITÁRIO | L11: TOTAL | M11: UNITÁRIO | N11: TOTAL
A12: 1. DESLOCAMENTO DA EQUIPE
A13: 1.1 Passagens aéreas
A14: a) Coordenador | D14: P0 | E14: unid. | F14: 1 | G14: ='FSUP-II VIAGENS'!G13 -> 0 | H14: =ROUND(F14*G14,2) -> 0 | I14: =ROUND((1+0.1)*(1+'FSUP-VI Det. Desp Fiscais'!$G$29)*G14,2) -> 0 | J14: =ROUND(F14*I14,2) -> 0 | K14: =G14 -> 0 | L14: =ROUND(K14*F14,2) -> 0 | M14: =ROUND((1+0.1)*(1+'FSUP-VI Det. Desp Fiscais'!$G$29)*K14,2) -> 0 | N14: =ROUND(F14*M14,2) -> 0
A24: 1.2 Diárias
A25: a) Coordenador | D25: P0 | E25: unid. | F25: 1 | H25: =ROUND(F25*G25,2) -> 0 | I25: =ROUND((1+0.1)*(1+0.1396)*G25,2) -> 0 | J25: =ROUND(F25*I25,2) -> 0
A41: TOTAIS DE CUSTOS E DE PREÇOS DE MOBILIZAÇÃO/DESMOBILIZAÇÃO | H41: =SUM(H12:H40) -> 0 | J41: =SUM(J12:J40) -> 0 | L41: =SUM(L12:L40) -> 0 | N41: =SUM(N12:N40) -> 0
A42: NOME DO INFORMANTE: | G42: QUALIFICAÇÃO:
A44: ASSINATURA: | L44: DATA:
A46: OBS: 1 - Custo do item sem lucro e sem despesas fiscais. Os totais detes deverão ser exportados para o item correspondente no FSUP
A47: 2 - Preço = custo + lucro + despesas fiscais e será calculado com a seguinte fórmula: custo*(1+0,1)*(1+0,1662). O preço será utilizado para fins de faturamento

Sheet FSUP-V Det. custos Adm.
A3: DETALHAMENTO DOS CUSTOS DE ADMINISTRAÇÃO | G3: CODIGO:
G4: FSUP-V
A5: NOME DA CONSULTORA:
A7: PROJETO: | C7: OBJETO: | G7: EDITAL:
A8: Meio Ambiente | C8: Regularização Ambiental de Barragens
A9: SEQ. | B9: DISCRIMINAÇÃO | F9: VALORES
F10: % | G10: R$
A11: 1 | B11: Custos da equipe da administração central da empresa consultora(diretoria, pessoal técnico de apoio e pessoal administrativo não diretamente vinculado à prestação dos serviços) | G11: =ROUND(F11/$F$38*FSUP!N$34,2) -> 
A12: 2 | B12: Outras despesas que afetam o custo de produção como treinamento, biblioteca, programa de qualidade, auditoria interna e externa | G12: =ROUND(F12/$F$38*FSUP!N$34,2) -> 
A13: 3 | B13: Despesas com aluguéis, comunicação, manutenção e transporte não diretamente relacionados com o custo direto dos serviços | G13: =ROUND(F13/$F$38*FSUP!N$34,2) -> 
B38: TOTAIS DO CUSTO DE ADMINISTRAÇÃO | F38: =SUM(F11:F22) -> 0 | G38: =SUM(G11:G37) -> 
A40: NOME DO INFORMANTE: | D40: QUALIFICAÇÃO:
A41: ASSINATURA: | F41: DATA:
A42: OBSERVAÇAO:
A43: 1 - RELACIONAR OS CUSTOS DE ADMINISTRAÇÃO COM RESPECTIVOS PERCENTUAIS INCIDENTES NA MÃO -DE-OBRA DOS
A44: SERVIÇOS

Sheet FSUP-VI Det. Desp Fiscais
A3: DETALHAMENTO DAS DESPESAS FISCAIS | H3: CODIGO:
H4: FSUP-VI
A5: NOME DA CONSULTORA:
A7: PROJETO: | C7: OBJETO: | H7: EDITAL:
A8: Meio Ambiente | C8: Regularização Ambiental de Barragens
A9: DISCRIMINAÇÃO 1 | F9: VALORES
F10: DF (%) 2 | G10: DF' (%) 3 | H10: R$
A12: 1 - ISS | G12: =(1/(1-$F$29))*F12 -> 0 | H12: =ROUND(G12/G$29*FSUP!N$36,2) -> 
A13: 2 - PIS | G13: =(1/(1-$F$29))*F13 -> 0 | H13: =ROUND(G13/G$29*FSUP!N$36,2) -> 
A14: 3 - COFINS | G14: =(1/(1-$F$29))*F14 -> 0 | H14: =ROUND(G14/G$29*FSUP!N$36,2) -> 
A29: TOTAIS DE DESPESAS FISCAIS | F29: =SUM(F12:F28) -> 0 | G29: =SUM(G12:G28) -> 0 | H29: =SUM(H12:H28) -> 
A30: NOME DO INFORMANTE: | F30: QUALIFICAÇÃO:
A32: ASSINATURA: | G32: DATA:
A34: Observação:
A35: 1 - DISCRIMINAR OS TRIBUTOS QUE INCIDEM SOBRE OS CUSTOS DA PRESTAÇÃO DOS SERVIÇOS
A36: 2 - DF = INDICAR OS % DE CADA TRIBUTO E A SOMA DOS MESMOS (ISS 5% + PIS 1,65% + COFINS 7,60% = 14,25%).
A37: OBS.: Tendo em vista que o contrato será desenvolvido em localidades diversas, foi adotada a alíquota de 5% de ISS,
A38: usual em muitos municípios.
A39: 3 - AS DESPESAS FISCAIS (DF) INCIDEM SOBRE O TOTAL DA FATURA E NÃO SOBRE OS CUSTOS INCORRIDOS,
A40: DEVENDO SER CALCULADO O DF' APLICANDO-SE A SEGUINTE FÓRMULA:
A41: DF' = | B41: { [ 1 / ( 1 - DF) ] - 1 } x 100
A42: DF"= | B42: { [ 1 / ( 1 - 14,25) ] - 1 } x 100
A43: DF' = | B43: 16% ou 0,1662 (APLICAR O % ENCONTRADO NA LINHA "H" DO FSUP PARA CALCULAR AS DESPESAS FISCAIS)
A44: O TOTAL CALCULADO NA LINHA "H" DO PFSUP SERÁ IMPORTADO PARA COMPOR ESTE DETALHAMENTO.
A45: O TOTAL CALCULADO NA LINHA "H" DO PFSUP SERÁ IMPORTADO PARA COMPOR ESTE DETALHAMENTO.

Sheet FSUP-VII Det. Enc. Sociais
A1: SINAPI - COMPOSIÇÃO DOS ENCARGOS SOCIAIS - BA
A3: DETALHAMENTO DOS ENCARGOS SOCIAIS | G3: CODIGO:
G4: FSUP-VII
A5: NOME DA CONSULTORA:
A7: PROJETO: | C7: OBJETO: | G7: EDITAL:
A8: Meio Ambiente | C8: Regularização Ambiental de Barragens
A9: DISCRIMINAÇÃO | F9: VALORES
F10: % | G10: R$
A11: A | B11: ENCARGOS SOCIAIS BÁSICOS (SINAPI)
A12: A1 | B12: INSS | G12: =ROUND(F12*'FSUP-I EQUIPE TÉCNICA'!L$37,2) -> 0
A13: A2 | B13: SESI | G13: =ROUND(F13*'FSUP-I EQUIPE TÉCNICA'!L$37,2) -> 0
A14: A3 | B14: SENAI | G14: =ROUND(F14*'FSUP-I EQUIPE TÉCNICA'!L$37,2) -> 0
A15: A4 | B15: INCRA | G15: =ROUND(F15*'FSUP-I EQUIPE TÉCNICA'!L$37,2) -> 0
A16: A5 | B16: SEBRAE | G16: =ROUND(F16*'FSUP-I EQUIPE TÉCNICA'!L$37,2) -> 0
A17: A6 | B17: Salário Educação
A18: A7 | B18: Seguro Contra Acidentes de Trabalho
A19: A8 | B19: FGTS | G19: =ROUND(F19*'FSUP-I EQUIPE TÉCNICA'!L$37,2) -> 0
A20: A9 | B20: SECONCI | G20: =ROUND(F20*'FSUP-I EQUIPE TÉCNICA'!L$37,2) -> 0
A21: SUBTOTAL DE "A" | F21: =ROUND(SUM(F12:F20),4) -> 0 | G21: =ROUND(SUM(G12:G20),2) -> 0
A23: B | B23: ENCARGOS SOCIAIS QUE RECEBEM INCIDÊNCIA DE "A" (SINAPI)
A24: B1 | B24: Repouso Semanal Remunerado | G24: =ROUND(F24*'FSUP-I EQUIPE TÉCNICA'!L$37,2) -> 0
A25: B2 | B25: Feriados | G25: =ROUND(F25*'FSUP-I EQUIPE TÉCNICA'!L$37,2) -> 0
A26: B3 | B26: Auxílio - Enfermidade | G26: =ROUND(F26*'FSUP-I EQUIPE TÉCNICA'!L$37,2) -> 0
A27: B4 | B27: 13º Salário | G27: =ROUND(F27*'FSUP-I EQUIPE TÉCNICA'!L$37,2) -> 0
A28: B5 | B28: Licença Paternidade | G28: =ROUND(F28*'FSUP-I EQUIPE TÉCNICA'!L$37,2) -> 0
A29: B6 | B29: faltas Justificadas | G29: =ROUND(F29*'FSUP-I EQUIPE TÉCNICA'!L$37,2) -> 0
A30: B7 | B30: Dias de Chuvas | G30: =ROUND(F30*'FSUP-I EQUIPE TÉCNICA'!L$37,2) -> 0
A31: B8 | B31: Auxílio Acidente de Trabalho | G31: =ROUND(F31*'FSUP-I EQUIPE TÉCNICA'!L$37,2) -> 0
A32: B9 | B32: Férias Gozadas | G32: =ROUND(F32*'FSUP-I EQUIPE TÉCNICA'!L$37,2) -> 0
A33: B10 | B33: Salário Maternidade | G33: =ROUND(F33*'FSUP-I EQUIPE TÉCNICA'!L$37,2) -> 0
A34: SUBTOTAL DE "B" | F34: =ROUND(SUM(F24:F33),4) -> 0 | G34: =ROUND(SUM(G24:G33),2) -> 0
A36: C | B36: ENCARGOS SOCIAIS QUE NÃO RECEBEM INCIDÊNCIA DE "A" (SINAPI)
A37: C1 | B37: Depósito por despedida sem justa causa | G37: =ROUND(F37*'FSUP-I EQUIPE TÉCNICA'!L$37,2) -> 0
A38: C2 | B38: Férias | G38: =ROUND(F38*'FSUP-I EQUIPE TÉCNICA'!L$37,2) -> 0
A39: C3 | B39: Indenização Adicional | G39: =ROUND(F39*'FSUP-I EQUIPE TÉCNICA'!L$37,2) -> 0
A40: C4 | B40: Aviso prévio Trabalhado | G40: =ROUND(F40*'FSUP-I EQUIPE TÉCNICA'!L$37,2) -> 0
A41: C5 | B41: Aviso prévio Indenizado | G41: =ROUND(F41*'FSUP-I EQUIPE TÉCNICA'!L$37,2) -> 0
A42: SUBTOTAL DE "C" | F42: =ROUND(SUM(F37:F41),4) -> 0 | G42: =ROUND(SUM(G37:G41),2) -> 0
A44: D | B44: REINCIDÊNCIAS (SINAPI)
A45: D1 | B45: Reincidência de "A" sobre "B" | G45: =ROUND(F45*'FSUP-I EQUIPE TÉCNICA'!L$37,2) -> 0
A46: D2 | B46: Reincidência de "A" sobre aviso prévio | G46: =ROUND(F46*'FSUP-I EQUIPE TÉCNICA'!L$37,2) -> 0
A47: SUBTOTAL DE "D" | F47: =SUM(F45:F46) -> 0 | G47: =ROUND(SUM(G45:G46),2) -> 0
A49: TOTAIS DE ENCARGOS SOCIAIS | F49: =ROUND(F21+F34+F42+F47,4) -> 0 | G49: =ROUND(G21+G34+G42+G47,2) -> 0
A50: NOME DO INFORMANTE: | D50: QUALIFICAÇÃO:
A52: ASSINATURA: | F52: DATA:
A54: Observação:
A55: 1 - DISCRIMINAR OS ENCARGOS SOCIAIS COM SEUS RESPECTIVOS PERCENTUAS TOTALIZANDO OS MESMOS.
A56: 2 - O % TOTAL SERÁ APLICADO PARA CÁLCULAR OS E. SOCIAIS INCIDENTES NA MÃO-DE-OBRA COM VÍNCULO, LINHA "B1" DO FSUP
